fUSD/lending_fUSD_20251024
["ID","MTS","AMOUNT","RATE_DAILY","PERIOD"]
[392258329,1761285046776,-500.0,0.00041095,30]
[392258330,1761285046785,-500.0,0.00041095,30]
[392258331,1761285046795,-465.8375016,0.00041095,30]
[392258332,1761285046804,-500.0,0.00041095,30]
[392258333,1761285046814,-500.0,0.00041095,30]
[392258334,1761285046823,-500.0,0.00041095,30]
[392258335,1761285046832,-500.0,0.00041095,30]
[392258336,1761285046842,-488.07931755,0.00041095,30]
[392258337,1761285046851,-500.0,0.00041095,30]
[392258338,1761285046860,-500.0,0.00041095,30]
[392258339,1761285046869,-500.0,0.00041095,30]
[392258340,1761285046882,-500.0,0.00041095,30]
[392258341,1761285046894,-500.0,0.00041095,30]
[392258342,1761285046911,-500.0,0.00041095,30]
[392258344,1761285046925,-500.0,0.00041095,30]
[392258346,1761285046934,-500.0,0.00041095,30]
[392258347,1761285046944,-964.04,0.00041095,30]
[392258348,1761285046953,-500.0,0.00041095,30]
[392258349,1761285046963,-500.0,0.00041095,30]
[392258350,1761285046972,-963.97,0.00041095,30]
[392258351,1761285046982,-500.0,0.00041095,30]
[392258352,1761285046992,-500.0,0.00041095,30]
[392258353,1761285047002,-500.0,0.00041095,30]
[392258354,1761285047011,-500.0,0.00041095,30]
[392258355,1761285047020,-592.45,0.00041095,30]
[392258356,1761285047030,-500.0,0.00041095,30]
[392258357,1761285047039,-500.0,0.00041095,30]
[392258358,1761285047048,-500.0,0.00041095,30]
[392258359,1761285047057,-500.0,0.00041095,2]
[392258360,1761285047067,-697.03,0.00041095,30]
[392258361,1761285047077,-500.0,0.00041095,30]
[392258362,1761285047086,-604.55,0.00041095,30]
[392258363,1761285047096,-500.0,0.00041095,30]
[392258364,1761285047105,-500.0,0.00041095,30]
[392258365,1761285047115,-500.0,0.00041095,30]
[392258366,1761285047124,-500.0,0.00041095,30]
[392258367,1761285047135,-500.0,0.00041095,30]
[392258368,1761285047145,-500.0,0.00041095,30]
[392258369,1761285047155,-500.0,0.00041095,30]
[392258370,1761285047164,-649.18,0.00041095,30]
[392258371,1761285047177,-500.0,0.00041095,6]
[392258372,1761285047187,-500.0,0.00041095,30]
[392258373,1761285047196,-500.0,0.00041095,30]
[392258374,1761285047205,-500.0,0.00041095,30]
[392258375,1761285047215,-500.0,0.00041095,30]
[392258376,1761285047224,-500.0,0.00041095,30]
[392258377,1761285047233,-500.0,0.00041095,30]
[392258378,1761285047243,-906.72,0.00041095,30]
[392258379,1761285047252,-500.0,0.00041095,30]
[392258380,1761285047261,-500.0,0.00041095,30]
[392258381,1761285047270,-500.0,0.00041095,30]
[392258382,1761285047279,-500.0,0.00041095,30]
[392258383,1761285047288,-500.0,0.00041095,30]
[392258384,1761285047297,-500.0,0.00041095,30]
[392258385,1761285047307,-500.0,0.00041095,30]
[392258386,1761285047316,-500.0,0.00041095,30]
[392258387,1761285047326,-673.03,0.00041095,30]
[392258388,1761285047335,-1131.71,0.00041095,30]
[392258389,1761285047345,-500.0,0.00041095,30]
[392258390,1761285047355,-500.0,0.00041095,30]
[392258391,1761285047364,-500.0,0.00041095,30]
[392258392,1761285047374,-500.0,0.00041095,30]
[392258393,1761285047383,-500.0,0.00041095,30]
[392258394,1761285047392,-500.0,0.00041095,30]
[392258395,1761285047402,-704.56,0.00041095,30]
[392258396,1761285047411,-631.45,0.00041095,30]
[392258397,1761285047420,-500.0,0.00041095,30]
[392258398,1761285047429,-500.0,0.00041095,30]
[392258399,1761285047438,-711.74,0.00041095,30]
[392258400,1761285047448,-567.19007811,0.00041095,30]
[392258401,1761285047457,-562.34,0.00041095,30]
[392258402,1761285047467,-500.0,0.00041095,30]
[392258403,1761285047476,-500.0,0.00041095,30]
[392258404,1761285047486,-500.0,0.00041095,30]
[392258405,1761285047496,-500.0,0.00041095,30]
[392258406,1761285047506,-500.0,0.00041095,30]
[392258407,1761285047515,-776.85,0.00041095,30]
[392258408,1761285047525,-500.0,0.00041095,30]
[392258409,1761285047534,-500.0,0.00041095,30]
[392258410,1761285047543,-500.0,0.00041095,30]
[392258411,1761285047553,-500.0,0.00041095,30]
[392258412,1761285047562,-500.0,0.00041095,30]
[392258413,1761285047572,-500.0,0.00041095,30]
[392258414,1761285047581,-500.0,0.00041095,30]
[392258415,1761285047591,-500.0,0.00041095,30]
[392258416,1761285047600,-500.0,0.00041095,30]
[392258417,1761285047724,-534.54,0.00041095,30]
[392258418,1761285047750,-500.0,0.00041095,30]
[392258419,1761285047760,-544.64,0.00041095,30]
[392258420,1761285047770,-500.0,0.00041095,30]
[392258421,1761285047779,-500.0,0.00041095,30]
[392258422,1761285047789,-500.0,0.00041095,30]
[392258423,1761285047798,-509.33544935,0.00041095,30]
[392258424,1761285047808,-500.0,0.00041095,30]
[392258425,1761285047817,-500.0,0.00041095,30]
[392258426,1761285047827,-654.42,0.00041095,30]
[392258427,1761285047836,-500.0,0.00041095,30]
[392258428,1761285047845,-786.68,0.00041095,30]
[392258430,1761285047855,-500.0,0.00041095,30]
[392258431,1761285047864,-500.0,0.00041095,30]
[392258432,1761285047873,-886.32,0.00041095,30]
[392258433,1761285047883,-600.11,0.00041095,30]
[392258434,1761285047892,-150.1898385,0.00041095,30]
[392258435,1761285047902,-500.0,0.00041095,30]
[392258436,1761285047912,-520.66,0.00041095,30]
[392258437,1761285047922,-500.0,0.00041095,30]
[392258438,1761285047931,-500.0,0.00041095,30]
[392258439,1761285047940,-539.54,0.00041095,30]
[392258440,1761285047950,-500.0,0.00041095,30]
[392258441,1761285047959,-500.0,0.00041095,30]
[392258442,1761285047968,-1002.8482009,0.00041095,30]
[392258443,1761285047978,-500.0,0.00041095,30]
[392258444,1761285047988,-500.0,0.00041095,30]
[392258445,1761285047998,-659.18,0.00041095,30]
[392258446,1761285048008,-500.0,0.00041095,30]
[392258447,1761285048018,-156.742453,0.00041095,120]
[392258448,1761285048027,-500.0,0.00041095,30]
[392258449,1761285048037,-500.0,0.00041095,30]
[392258450,1761285048047,-500.0,0.00041095,30]
[392258451,1761285048056,-500.0,0.00041095,30]
[392258452,1761285048065,-427.89,0.00041095,30]
[392258453,1761285048075,-500.0,0.00041095,30]
[392258454,1761285048084,-500.0,0.00041095,30]
[392258455,1761285048094,-500.0,0.00041095,30]
[392258456,1761285048103,-500.0,0.00041095,30]
[392258457,1761285048112,-500.0,0.00041095,30]
[392258458,1761285048121,-633.99,0.00041095,30]
[392258459,1761285048131,-500.0,0.00041095,30]
[392258460,1761285048140,-500.0,0.00041095,30]
[392258461,1761285048149,-500.0,0.00041095,30]
[392258462,1761285048159,-500.0,0.00041095,30]
[392258463,1761285048168,-532.89,0.00041095,30]
[392258464,1761285048178,-500.0,0.00041095,30]
[392258465,1761285048190,-500.0,0.00041095,30]
[392258466,1761285048200,-813.93,0.00041095,30]
[392258467,1761285048214,-500.0,0.00041095,30]
[392258468,1761285048224,-500.0,0.00041095,30]
[392258469,1761285048233,-500.0,0.00041095,30]
[392258470,1761285048243,-500.0,0.00041095,30]
[392258471,1761285048252,-500.0,0.00041095,30]
[392258472,1761285048262,-500.0,0.00041095,30]
[392258473,1761285048271,-500.0,0.00041095,30]
[392258474,1761285048281,-500.0,0.00041095,30]
[392258475,1761285048290,-500.0,0.00041095,30]
[392258476,1761285048299,-713.9,0.00041095,30]
[392258477,1761285048309,-500.0,0.00041095,30]
[392258478,1761285048320,-500.0,0.00041095,30]
[392258479,1761285048330,-500.0,0.00041095,30]
[392258480,1761285048342,-317.68623079,0.00041095,30]
[392258481,1761285048351,-500.0,0.00041095,30]
[392258482,1761285048360,-500.0,0.00041095,30]
[392258483,1761285048370,-500.0,0.00041095,30]
[392258484,1761285048379,-500.0,0.00041095,30]
[392258485,1761285048388,-521.66,0.00041095,30]
[392258486,1761285048399,-500.0,0.00041095,30]
[392258487,1761285048408,-500.0,0.00041095,30]
[392258488,1761285048418,-1000.0,0.00041095,2]
[392258489,1761285048428,-502.32,0.00041095,30]
[392258490,1761285048437,-1000.0,0.00041095,2]
[392258491,1761285048447,-1000.0,0.00041095,2]
[392258492,1761285048456,-1000.0,0.00041095,2]
[392258493,1761285048466,-1000.0,0.00041095,2]
[392258494,1761285048475,-1000.0,0.00041095,2]
[392258495,1761285048485,-1000.0,0.00041095,2]
[392258496,1761285048495,-1000.0,0.00041095,2]
[392258497,1761285048504,-1000.0,0.00041095,2]
[392258498,1761285048514,-500.0,0.00041095,30]
[392258499,1761285048523,-1000.0,0.00041095,2]
[392258500,1761285048533,-500.0,0.00041095,30]
[392258501,1761285048546,-1000.0,0.00041095,2]
[392258502,1761285048555,-1000.0,0.00041095,2]
[392258503,1761285048564,-1000.0,0.00041095,2]
[392258504,1761285048573,-1000.0,0.00041095,2]
[392258505,1761285048583,-1000.0,0.00041095,2]
[392258506,1761285048592,-262.19169031,0.00041095,2]
[392258507,1761285048665,-479.50285218,0.00041095,2]
[392258544,1761285390536,-500.0,0.00024932,2]
[392258545,1761285390566,-250.0,0.00027425,2]
[392258546,1761285390584,-250.0,0.00028904,2]
[392258547,1761285390593,-250.0,0.00031978,2]
[392258548,1761285390608,-153.0,0.00032877,30]
[392258549,1761285390617,-97.0,0.00033935,2]
[392258550,1761285390628,-71.0,0.00033935,2]
[392258551,1761285390639,-129.0,0.00034069,2]
[392258557,1761285437823,-39.0,0.00034069,2]
[392258558,1761285437856,-300.0,0.00034071,120]
[392258559,1761285437875,-39.0,0.00034074,2]
[392258560,1761285437894,-211.0,0.00034074,2]
[392258561,1761285437904,-89.0,0.00034079,2]
[392258562,1761285437915,-22.0,0.00034079,2]
[392258563,1761285462137,-57.0,0.00034079,2]
[392258564,1761285462179,-168.0,0.00034132,2]
[392258565,1761285462202,-57.0,0.00034191,120]
[392258566,1761285462224,-168.0,0.00034191,120]
[392258567,1761285462235,-75.0,0.00034191,120]
[392258568,1761285462246,-175.0,0.00034191,120]
[392258896,1761286231414,-250.0,0.00017,2]
[392258897,1761286231424,-339.03,0.000187,2]
[392258898,1761286231434,-250.0,0.000187,2]
[392258899,1761286231445,-250.0,0.000187,2]
[392258900,1761286231455,-22.35609621,0.0003,2]
[392258902,1761286231531,-287.32390379,0.0003,2]
[392258904,1761286231591,-2882.88067366,0.0003,2]
[392258905,1761286231602,-500.0,0.00034191,2]
[392258906,1761286231613,-294.82694386,0.00034191,2]
[392258907,1761286231623,-150.0,0.00034191,2]
[392258908,1761286231633,-632.29238247,0.000342,5]
[392258910,1761286231689,-182.70761753,0.000342,5]
[392258911,1761286231699,-168.0,0.00034949,2]
[392258913,1761286231709,-168.0,0.00035768,2]
[392258914,1761286231718,-166.66,0.00036184,30]
[392258915,1761286231728,-168.0,0.00036324,2]
[392258916,1761286231738,-168.0,0.00036325,2]
[392258917,1761286231748,-476.23156132,0.00036353,2]
[392258918,1761286231758,-168.0,0.00036361,2]
[392258919,1761286231767,-168.0,0.00036681,2]
[392258920,1761286231777,-1000.0,0.000367,2]
[392258922,1761286231787,-179.47593559,0.00036776,15]
[392258923,1761286231797,-500.0,0.00036776,15]
[392258924,1761286231807,-179.06446978,0.00036776,15]
[392258945,1761286237324,-244.24586654,0.00036776,15]
[392258946,1761286237334,-124.85779804,0.00036777,2]
[392258947,1761286237345,-2834.50710049,0.00036777,2]
[392258948,1761286237357,-2188.4558373,0.00036777,2]
[392258949,1761286237368,-3239.1706528,0.00036777,2]
[392258953,1761286239551,-4567.43663301,0.00036777,2]
[392258954,1761286239615,-71885.41197836,0.00036777,2]
[392258955,1761286239625,-473.624,0.00036777,46]
[392258956,1761286239635,-166.66,0.00036946,30]
[392258957,1761286239646,-2535.93109123,0.00037023,2]
[392258958,1761286239656,-166.66,0.00037708,30]
[392258959,1761286239666,-150.0,0.00037857,2]
[392258960,1761286239676,-565.78353322,0.00037857,2]
[392258961,1761286239686,-150.0,0.00037857,2]
[392258962,1761286239698,-565.78353322,0.00037857,2]
[392258963,1761286239707,-1000.0,0.00037983,2]
[392258964,1761286239717,-341.2,0.00038017,120]
[392258965,1761286239727,-250.0,0.0003803,2]
[392258966,1761286239738,-150.0,0.00038138,2]
[392258967,1761286239749,-150.0,0.00038138,120]
[392258968,1761286239759,-606.66,0.00038256,2]
[392258969,1761286239773,-166.66,0.00038469,30]
[392258970,1761286239782,-367.22282903,0.00038741,2]
[392258971,1761286239793,-166.66,0.00039231,30]
[392258972,1761286239802,-3246.9717787,0.00039905,2]
[392258973,1761286239811,-153.8953264,0.00039905,2]
[392258974,1761286239821,-166.66,0.00039993,30]
[392258975,1761286239830,-12499.99,0.0004,120]
[392258976,1761286239839,-1000.0,0.000402,7]
[392258977,1761286239850,-1011.0,0.000402,7]
[392258978,1761286239861,-176.06,0.00040274,2]
[392258979,1761286239872,-150.0,0.00040274,2]
[392258980,1761286239887,-150.0,0.00040274,2]
[392258981,1761286239902,-1000.0,0.000403,7]
[392258982,1761286239911,-1000.0,0.000403,7]
[392258983,1761286239924,-1535.0,0.000404,7]
[392258984,1761286239934,-1425.0,0.00040865,2]
[392258985,1761286239945,-1425.0,0.00040877,2]
[392258986,1761286239956,-150.0,0.00040885,2]
[392258987,1761286239966,-743.1563091,0.00040943,2]
[392258988,1761286239975,-2528.83713214,0.00040985,15]
[392258989,1761286239984,-3367.14935914,0.00040985,15]
[392258990,1761286239995,-579.67151606,0.00040985,13]
[392258991,1761286240004,-2500.0,0.00040985,2]
[392258992,1761286240015,-687.3927768,0.00041,120]
[392258993,1761286240025,-7475.71094166,0.00041,2]
[392258994,1761286240034,-1145.79,0.00041,120]
[392258995,1761286240045,-2206.17620652,0.00041,30]
[392258996,1761286240054,-150.0,0.00041018,7]
[392258997,1761286240063,-500.0,0.00041084,2]
[392258998,1761286240073,-302624.55709,0.00041085,3]
[392258999,1761286240084,-12002.6385924,0.00041085,3]
[392259000,1761286240093,-1600.35181232,0.00041086,3]
[392259001,1761286240103,-150.0,0.00041086,3]
[392259002,1761286240114,-800.17590616,0.0004109,3]
[392259003,1761286240123,-151.0,0.00041092,14]
[392259004,1761286240132,-155.675,0.00041094,120]
[392259005,1761286240142,-500.0,0.00041094,2]
[392259006,1761286240152,-500.0,0.00041094,2]
[392259007,1761286240162,-500.0,0.00041094,2]
[392259008,1761286240171,-500.0,0.00041094,2]
[392259009,1761286240182,-255.0,0.00041095,5]
[392259010,1761286240191,-258.30545751,0.00041095,2]
[392259011,1761286240201,-1000.0,0.00041095,2]
[392259012,1761286240212,-1000.0,0.00041095,2]
[392259013,1761286240221,-1000.0,0.00041095,2]
[392259014,1761286240230,-1000.0,0.00041095,2]
[392259015,1761286240239,-1000.0,0.00041095,2]
[392259016,1761286240249,-1000.0,0.00041095,2]
[392259017,1761286240258,-1000.0,0.00041095,2]
[392259018,1761286240267,-1000.0,0.00041095,2]
[392259019,1761286240281,-1000.0,0.00041095,2]
[392259020,1761286240290,-1000.0,0.00041095,2]
[392259021,1761286240299,-1000.0,0.00041095,2]
[392259022,1761286240308,-1000.0,0.00041095,2]
[392259023,1761286240317,-1000.0,0.00041095,2]
[392259024,1761286240326,-396.59870684,0.00041095,2]
[392259025,1761286240335,-154.309447,0.00041095,30]
[392259026,1761286240344,-158.37162,0.00041095,30]
[392259027,1761286240353,-157.837816,0.00041095,30]
[392259028,1761286240362,-156.407983,0.00041095,30]
[392259029,1761286240372,-157.484216,0.00041095,30]
[392259030,1761286240381,-2470.0158042,0.00041095,2]
[392259031,1761286240390,-500.0,0.00041095,30]
[392259032,1761286240399,-500.0,0.00041095,30]
[392259033,1761286240408,-500.0,0.00041095,30]
[392259034,1761286240418,-520.87949953,0.00041095,30]
[392259035,1761286240426,-510.99172985,0.00041095,30]
[392259036,1761286240435,-500.0,0.00041095,30]
[392259037,1761286240444,-500.0,0.00041095,30]
[392259038,1761286240453,-537.82338981,0.00041095,30]
[392259039,1761286240463,-500.0,0.00041095,30]
[392259040,1761286240472,-500.0,0.00041095,30]
[392259041,1761286240482,-500.0,0.00041095,30]
[392259042,1761286240492,-505.63839083,0.00041095,30]
[392259043,1761286240501,-500.0,0.00041095,30]
[392259044,1761286240510,-500.0,0.00041095,30]
[392259045,1761286240520,-500.0,0.00041095,30]
[392259046,1761286240529,-500.0,0.00041095,30]
[392259047,1761286240538,-180.14874032,0.00041095,30]
[392259048,1761286240547,-1249.0295708,0.00041095,2]
[392259049,1761286240557,-500.0,0.00041095,30]
[392259050,1761286240568,-500.0,0.00041095,30]
[392259051,1761286240577,-504.39781936,0.00041095,30]
[392259052,1761286240586,-500.0,0.00041095,30]
[392259053,1761286240596,-500.0,0.00041095,30]
[392259054,1761286240605,-500.0,0.00041095,30]
[392259055,1761286240614,-500.0,0.00041095,30]
[392259056,1761286240623,-500.0,0.00041095,30]
[392259057,1761286240632,-500.0,0.00041095,30]
[392259058,1761286240642,-500.0,0.00041095,30]
[392259059,1761286240651,-610.78500302,0.00041095,30]
[392259060,1761286240664,-500.0,0.00041095,30]
[392259061,1761286240673,-500.0,0.00041095,30]
[392259062,1761286240683,-500.0,0.00041095,30]
[392259063,1761286240692,-500.0,0.00041095,30]
[392259064,1761286240701,-500.0,0.00041095,30]
[392259065,1761286240710,-500.0,0.00041095,30]
[392259066,1761286240720,-500.0,0.00041095,30]
[392259067,1761286240729,-500.0,0.00041095,30]
[392259068,1761286240738,-500.0,0.00041095,30]
[392259069,1761286240747,-500.0,0.00041095,30]
[392259070,1761286240757,-500.0,0.00041095,30]
[392259071,1761286240766,-500.0,0.00041095,30]
[392259072,1761286240775,-500.0,0.00041095,30]
[392259073,1761286240785,-500.0,0.00041095,30]
[392259074,1761286240794,-500.0,0.00041095,30]
[392259075,1761286240804,-500.0,0.00041095,30]
[392259076,1761286240815,-500.0,0.00041095,30]
[392259077,1761286240825,-500.0,0.00041095,30]
[392259078,1761286240835,-500.0,0.00041095,30]
[392259079,1761286240845,-500.0,0.00041095,30]
[392259080,1761286240854,-1000.0,0.00041095,120]
[392259081,1761286240863,-500.0,0.00041095,30]
[392259082,1761286240872,-500.0,0.00041095,30]
[392259083,1761286240881,-401.58174822,0.00041095,30]
[392259084,1761286240902,-98.41825178,0.00041095,30]
[392259085,1761286240914,-500.0,0.00041095,30]
[392259086,1761286240924,-171.90089808,0.00041095,30]
[392259087,1761286240937,-328.09910192,0.00041095,30]
[392259088,1761286240947,-137.43192366,0.00041095,30]
[392259089,1761286240958,-362.56807634,0.00041095,30]
[392259090,1761286240969,-500.0,0.00041095,30]
[392259091,1761286240978,-500.0,0.00041095,30]
[392259092,1761286240987,-500.0,0.00041095,30]
[392259093,1761286240996,-876.89,0.00041095,30]
[392259094,1761286241005,-506.23087792,0.00041095,30]
[392259095,1761286241014,-500.0,0.00041095,30]
[392259096,1761286241025,-500.0,0.00041095,30]
[392259097,1761286241036,-500.0,0.00041095,30]
[392259098,1761286241053,-500.0,0.00041095,30]
[392259099,1761286241063,-500.0,0.00041095,30]
[392259100,1761286241072,-500.0,0.00041095,30]
[392259101,1761286241081,-500.0,0.00041095,30]
[392259102,1761286241090,-500.0,0.00041095,30]
[392259103,1761286241099,-500.0,0.00041095,30]
[392259104,1761286241108,-500.0,0.00041095,30]
[392259105,1761286241118,-500.0,0.00041095,30]
[392259106,1761286241127,-500.0,0.00041095,30]
[392259107,1761286241137,-500.0,0.00041095,30]
[392259108,1761286241146,-500.0,0.00041095,30]
[392259109,1761286241155,-748.14,0.00041095,30]
[392259110,1761286241165,-500.0,0.00041095,30]
[392259111,1761286241175,-500.0,0.00041095,30]
[392259112,1761286241184,-500.0,0.00041095,2]
[392259113,1761286241194,-611.93,0.00041095,30]
[392259114,1761286241204,-500.0,0.00041095,30]
[392259115,1761286241215,-500.0,0.00041095,30]
[392259116,1761286241225,-500.0,0.00041095,30]
[392259117,1761286241234,-500.0,0.00041095,30]
[392259118,1761286241244,-500.0,0.00041095,30]
[392259119,1761286241253,-500.0,0.00041095,30]
[392259120,1761286241262,-500.0,0.00041095,30]
[392259121,1761286241271,-503.23994023,0.00041095,30]
[392259122,1761286241280,-500.0,0.00041095,6]
[392259123,1761286241289,-500.0,0.00041095,30]
[392259124,1761286241298,-500.0,0.00041095,30]
[392259125,1761286241308,-500.0,0.00041095,30]
[392259126,1761286241318,-500.0,0.00041095,30]
[392259127,1761286241327,-500.0,0.00041095,30]
[392259128,1761286241336,-500.0,0.00041095,30]
[392259129,1761286241345,-500.0,0.00041095,30]
[392259130,1761286241355,-855.8,0.00041095,30]
[392259131,1761286241364,-500.0,0.00041095,30]
[392259132,1761286241373,-530.14,0.00041095,30]
[392259133,1761286241383,-247.68501289,0.00041095,30]
[392259134,1761286241391,-712.99,0.00041095,30]
[392259135,1761286241400,-500.0,0.00041095,30]
[392259136,1761286241410,-500.0,0.00041095,30]
[392259137,1761286241419,-500.0,0.00041095,30]
[392259138,1761286241430,-151.0,0.00041095,120]
[392259139,1761286241440,-651.16,0.00041095,30]
[392259140,1761286241450,-500.0,0.00041095,30]
[392259141,1761286241459,-500.0,0.00041095,2]
[392259142,1761286241469,-500.0,0.00041095,30]
[392259143,1761286241478,-672.54,0.00041095,30]
[392259144,1761286241487,-934.81,0.00041095,30]
[392259145,1761286241497,-500.0,0.00041095,30]
[392259146,1761286241507,-500.0,0.00041095,30]
[392259147,1761286241516,-500.0,0.00041095,30]
[392259148,1761286241526,-504.6095674,0.00041095,30]
[392259149,1761286241535,-500.0,0.00041095,2]
[392259150,1761286241545,-500.0,0.00041095,30]
[392259151,1761286241555,-500.0,0.00041095,30]
[392259152,1761286241566,-500.0,0.00041095,30]
[392259153,1761286241579,-535.05,0.00041095,30]
[392259154,1761286241589,-500.0,0.00041095,30]
[392259155,1761286241599,-918.88,0.00041095,30]
[392259156,1761286241609,-500.0,0.00041095,30]
[392259157,1761286241620,-500.0,0.00041095,30]
[392259158,1761286241629,-500.0,0.00041095,30]
[392259159,1761286241639,-500.0,0.00041095,30]
[392259160,1761286241648,-623.67209098,0.00041095,30]
[392259161,1761286241657,-500.0,0.00041095,30]
[392259162,1761286241666,-500.0,0.00041095,30]
[392259163,1761286241676,-500.0,0.00041095,30]
[392259164,1761286241685,-500.0,0.00041095,30]
[392259165,1761286241694,-544.10695291,0.00041095,30]
[392259166,1761286241703,-500.0,0.00041095,30]
[392259167,1761286241712,-500.0,0.00041095,30]
[392259168,1761286241722,-500.0,0.00041095,12]
[392259169,1761286241731,-500.0,0.00041095,30]
[392259170,1761286241741,-500.0,0.00041095,30]
[392259171,1761286241750,-500.0,0.00041095,30]
[392259172,1761286241761,-722.54,0.00041095,30]
[392259173,1761286241771,-500.0,0.00041095,30]
[392259174,1761286241780,-500.0,0.00041095,30]
[392259175,1761286241789,-500.0,0.00041095,30]
[392259176,1761286241802,-510.69201356,0.00041095,30]
[392259177,1761286241811,-500.0,0.00041095,30]
[392259178,1761286241820,-500.0,0.00041095,30]
[392259179,1761286241831,-500.0,0.00041095,30]
[392259180,1761286241841,-500.0,0.00041095,30]
[392259181,1761286241851,-500.0,0.00041095,10]
[392259182,1761286241861,-713.19,0.00041095,30]
[392259183,1761286241871,-500.0,0.00041095,30]
[392259184,1761286241886,-500.0,0.00041095,30]
[392259185,1761286241895,-568.83,0.00041095,30]
[392259186,1761286241906,-500.0,0.00041095,30]
[392259187,1761286241917,-528.15098645,0.00041095,30]
[392259188,1761286241928,-500.0,0.00041095,30]
[392259189,1761286241938,-500.0,0.00041095,30]
[392259190,1761286241948,-500.0,0.00041095,30]
[392259191,1761286241960,-500.0,0.00041095,30]
[392259192,1761286241970,-500.0,0.00041095,30]
[392259193,1761286241979,-500.0,0.00041095,30]
[392259194,1761286241988,-500.0,0.00041095,30]
[392259195,1761286241998,-500.0,0.00041095,30]
[392259196,1761286242007,-500.0,0.00041095,30]
[392259197,1761286242016,-500.0,0.00041095,30]
[392259198,1761286242026,-500.0,0.00041095,30]
[392259199,1761286242035,-786.88,0.00041095,30]
[392259200,1761286242046,-500.0,0.00041095,30]
[392259201,1761286242056,-615.81,0.00041095,30]
[392259202,1761286242065,-500.0,0.00041095,30]
[392259203,1761286242076,-500.0,0.00041095,30]
[392259204,1761286242085,-685.37,0.00041095,30]
[392259205,1761286242095,-500.0,0.00041095,30]
[392259206,1761286242105,-794.72,0.00041095,30]
[392259207,1761286242115,-500.0,0.00041095,30]
[392259208,1761286242124,-500.0,0.00041095,30]
[392259209,1761286242134,-500.0,0.00041095,30]
[392259210,1761286242145,-500.0,0.00041095,30]
[392259211,1761286242155,-500.0,0.00041095,30]
[392259212,1761286242164,-500.0,0.00041095,30]
[392259213,1761286242173,-500.0,0.00041095,30]
[392259214,1761286242183,-500.0,0.00041095,30]
[392259215,1761286242193,-500.0,0.00041095,30]
[392259216,1761286242202,-500.0,0.00041095,30]
[392259217,1761286242366,-500.0,0.00041095,30]
[392259218,1761286242456,-505.86392033,0.00041095,30]
[392259219,1761286242467,-500.0,0.00041095,30]
[392259220,1761286242476,-772.85,0.00041095,30]
[392259221,1761286242486,-535.86,0.00041095,30]
[392259222,1761286242495,-500.0,0.00041095,30]
[392259223,1761286242505,-500.0,0.00041095,30]
[392259224,1761286242515,-510.5,0.00041095,30]
[392259225,1761286242525,-500.0,0.00041095,30]
[392259226,1761286242535,-500.0,0.00041095,30]
[392259227,1761286242544,-500.0,0.00041095,30]